Creditor Name,Section ,Voucher No,Cost Code,Detail Code,Type of Expenditure,Description,Payment Date,Net Amount
7th Malvern Scout Group,Electoral Services,V083108,8104,2818,Third party payments,Accomodation Hire,21/09/2017,150
7th Malvern Scout Group,Electoral Services,V083108,8109,2818,Third party payments,Accomodation Hire,21/09/2017,150
Abberley Parish Council,Finance,P083163,7,4899,Third party payments,Precept Payments,26/09/2017,4350
Accountancy Learning Ltd,Finance,V083045,8861,600,Employee Costs,Training,26/09/2017,1305.83
Aldine Print Ltd,Tourism,V082847,6550,2600,Supplies & Services,Items for Re-Sale,08/09/2017,281
Alfrick & Lulsley Parish Council,Finance,P083164,7,4899,Third party payments,Precept Payments,26/09/2017,6420
Alphabet (UK) Limited,Finance,V082407,4837,3600,Transport Costs,Car Leases,04/09/2017,2998.92
Angel Springs Limited,Property Services,V078688,2971,1120,Premises Costs,Maintenance Agreements,14/09/2017,329.64
Angel Springs Limited,Property Services,V078690,2972,1120,Premises Costs,Maintenance Agreements,14/09/2017,362.61
Angel Springs Limited,Property Services,V080205,2972,1120,Premises Costs,Maintenance Agreements,14/09/2017,362.61
Angel Springs Limited,Property Services,V080207,2971,1120,Premises Costs,Maintenance Agreements,14/09/2017,329.64
Angel Springs Limited,Finance,V082844,900,1120,Premises Costs,Maintenance Agreements,14/09/2017,-362.61
Angel Springs Limited,Finance,V082844,2971,1120,Premises Costs,Maintenance Agreements,14/09/2017,-100
Angel Springs Limited,Finance,V082844,2972,1120,Premises Costs,Maintenance Agreements,14/09/2017,-725.22
Angel Springs Limited,Finance,V082844,6550,1120,Premises Costs,Maintenance Agreements,14/09/2017,-100
Astley and Dunley Parish Council,Finance,P083165,7,4899,Third party payments,Precept Payments,26/09/2017,5446
Bayton Parish Council,Finance,P083160,7,4899,Third party payments,Precept Payments,26/09/2017,4000
Berrow Parish Council,Finance,P083167,7,4899,Third party payments,Precept Payments,26/09/2017,875
BES Cash Registers Limited,Tourism,V082803,6590,5300,Third party payments,Subscriptions,05/09/2017,300
Birtsmorton Parish Council,Finance,P083166,7,4899,Third party payments,Precept Payments,26/09/2017,1025
Broadwas and Cotheridge Parish Council,Finance,P083168,7,4899,Third party payments,Precept Payments,26/09/2017,9910
Bromsgrove District Council,Finance,P082728,4320,5507,Third party payments,OLAs,01/09/2017,32166.66
Bromsgrove District Council,Finance,P083247,4320,5507,Third party payments,OLAs,29/09/2017,32166.66
Brookhire Vehicle Rental,Operations,V082877,725,3510,Transport Costs,Vehicle Maintenance,07/09/2017,349.12
Bushley Parish Council,Finance,P083169,7,4899,Third party payments,Precept Payments,26/09/2017,3462
C J Bayliss (Hereford) Ltd,Property Services,V083038,6115,1000,Premises Costs,Repairs & Maintenance,15/09/2017,334.4
Castlemorton Parish Council,Finance,P083170,7,4899,Third party payments,Precept Payments,26/09/2017,2250
Chipside Ltd,Street Scene,V082806,4100,2800,Third party payments,Contractors,19/09/2017,564.52
CleanMy Ltd,Operations,V082537,935,1311,Premises Costs,Contract Cleaning & Cleaning Supplies,13/09/2017,414.56
Cleansing Service Group Ltd,Operations,V082557,900,2800,Third party payments,Contractors,12/09/2017,1149.84
Clifton upon Teme Parish Council,Finance,P083177,7,4899,Third party payments,Precept Payments,26/09/2017,11250
Cognet Ltd,Finance,V083158,2619,600,Employee Costs,Training,25/09/2017,395
Community Action Malvern and District,Community Services,V082792,4070,5529,Third party payments,Concessionary Fares,04/09/2017,1282
Countwise Systems Ltd,Economic Development,V083117,6550,2800,Third party payments,Contractors,21/09/2017,750
Covergold Ltd,Development Control,V082795,7300,2125,Third party payments,ICT - Software Licences,27/09/2017,315
Dampcure,Property Services,V082838,2997,1000,Premises Costs,Repairs & Maintenance,06/09/2017,625
Dampcure,Property Services,V083119,2975,1000,Premises Costs,Repairs & Maintenance,22/09/2017,3350
David Whyman Map Sales,Tourism,V082849,6550,2600,Supplies & Services,Items for Re-Sale,07/09/2017,420.93
David Whyman Map Sales,Tourism,V082986,6550,2600,Supplies & Services,Items for Re-Sale,15/09/2017,332.9
DLP Planning Ltd,Development Control,V083053,7300,2800,Third party payments,Contractors,26/09/2017,992.25
Docu-Finish Solutions Ltd,Property Services,V082888,8620,1000,Third party payments,Repairs & Maintenance,08/09/2017,585
Dudleys Coaches Limited,Tourism,V082898,6550,9252,Third party payments,Commission,08/09/2017,-66.35
Dudleys Coaches Limited,Tourism,V082898,9557,8902,Third party payments,Payments,08/09/2017,663.5
Earls Croome Parish Council,Finance,P083178,7,4899,Third party payments,Precept Payments,26/09/2017,1335
Eastham Parish Council,Finance,P083180,7,4899,Third party payments,Precept Payments,26/09/2017,3700
Electoral Reform Services,Electoral Services,V082881,8120,4000,Third party payments,Printing & Photocopying,07/09/2017,286.71
Electoral Reform Services,Electoral Services,V082881,8120,4220,Third party payments,Postage,07/09/2017,392.5
Electoral Reform Services,Electoral Services,V083229,8120,4000,Third party payments,Printing & Photocopying,27/09/2017,3540.45
Electoral Reform Services,Electoral Services,V083229,8120,4220,Third party payments,Postage,27/09/2017,8873.56
Emblem Print Products Ltd,Tourism,V082730,6590,2600,Third party payments,Items for Re-Sale,19/09/2017,419.04
Empty Homes UK Ltd,Finance,V083093,1563,7010,Capital,Disabled Facilities Grant,21/09/2017,1600
ESE Ltd,Operations,V082432,922,2000,Supplies & Services,Furniture & Equipment,01/09/2017,2738
Euro Municipal Ltd,Operations,V082606,821,3150,Transport Costs,Vehicle HIre,01/09/2017,950
Euro Municipal Ltd,Operations,V082660,821,3150,Transport Costs,Vehicle HIre,08/09/2017,760
Euro Municipal Ltd,Operations,V082767,821,3510,Transport Costs,Vehicle Maintenance,15/09/2017,303.75
Euro Municipal Ltd,Operations,V082783,823,3150,Transport Costs,Vehicle HIre,15/09/2017,950
Euro Municipal Ltd,Operations,V082976,823,3150,Transport Costs,Vehicle HIre,22/09/2017,900
First Personnel Services plc,Operations,V082509,922,200,Employee Costs,Agency Staff,20/09/2017,673.11
First Personnel Services plc,Operations,V082509,923,200,Employee Costs,Agency Staff,20/09/2017,206.31
First Personnel Services plc,Operations,V082509,925,200,Employee Costs,Agency Staff,20/09/2017,403.36
First Personnel Services plc,Operations,V082610,925,200,Employee Costs,Agency Staff,13/09/2017,700.93
First Personnel Services plc,Operations,V082611,922,200,Employee Costs,Agency Staff,22/09/2017,530.89
First Personnel Services plc,Operations,V082732,922,200,Employee Costs,Agency Staff,20/09/2017,564.56
First Personnel Services plc,Operations,V082732,925,200,Employee Costs,Agency Staff,20/09/2017,1095.04
First Personnel Services plc,Operations,V082939,922,200,Employee Costs,Agency Staff,27/09/2017,473.78
First Personnel Services plc,Operations,V082939,925,200,Employee Costs,Agency Staff,27/09/2017,664.58
Fortis Living,Housing,V082831,1563,7200,Capital,Disabled Facilities Grant,25/09/2017,56454.3
Fortis Living,Housing,V083154,3330,2800,Third party payments,Contractors,25/09/2017,8000
Fortis Living,Housing,V083155,3340,2800,Third party payments,Contractors,26/09/2017,25000
Fortis Living,Housing,V083156,3305,2800,Third party payments,Contractors,25/09/2017,13000
Freedom Leisure,Community Services,V082747,6181,2800,Third party payments,Contractors,27/09/2017,330
Geesink Norba Ltd,Operations,V082903,817,3510,Transport Costs,Vehicle Maintenance,08/09/2017,466.56
Geesink Norba Ltd,Operations,V083065,815,3510,Transport Costs,Vehicle Maintenance,19/09/2017,893.17
Geesink Norba Ltd,Operations,V083065,818,3510,Transport Costs,Vehicle Maintenance,19/09/2017,443.44
Global Payments,Finance,V082919,2607,5543,Third party payments,Credit Card Commission,18/09/2017,705.21
Global Payments,Finance,V082922,2607,5543,Third party payments,Credit Card Commission,18/09/2017,1462.86
Great Witley and Hillhampton Parish Council,Finance,P083181,7,4899,Third party payments,Precept Payments,26/09/2017,4500
Great Witley and Hillhampton Parish Council,Finance,V082913,7200,5400,Third party payments,Grants,08/09/2017,2300
Grimley Parish Council,Finance,P083182,7,4899,Third party payments,Precept Payments,26/09/2017,8268.75
Ground Force Leisure,Operations,V082770,960,2000,Third party payments,Furniture & Equipment,27/09/2017,253
Guarlford Parish Council,Finance,P083183,7,4899,Third party payments,Precept Payments,26/09/2017,2175
Hallow Parish Council,Finance,P083171,7,4899,Third party payments,Precept Payments,26/09/2017,19750
Hanley Castle Parish Council,Finance,P083184,7,4899,Third party payments,Precept Payments,26/09/2017,10050
Hanley Parish Council,Finance,P083185,7,4899,Third party payments,Precept Payments,26/09/2017,1000
Harrison Clark Rickerbys Limited,Development Control,V083011,7300,2800,Third party payments,Contractors,15/09/2017,800
Hereford Asbestos Services Ltd,Property Services,V082735,1198,7010,Capital,Works,19/09/2017,1500
Hill Croome Parish Council,Finance,P083186,7,4899,Third party payments,Precept Payments,26/09/2017,1680
Holt Parish Council,Finance,P083187,7,4899,Third party payments,Precept Payments,26/09/2017,5179.5
I E Developments Ltd,Property Services,V083023,2996,2800,Premises Costs,Contractors,20/09/2017,2175
Illman Young Landscape Design Ltd,Development Control,V082914,7300,2800,Third party payments,Contractors,12/09/2017,1300
ISO Property Developements Ltd,Housing,V082889,1563,7201,Capital,Disabled Facilities Grant,07/09/2017,3935
ISO Property Developements Ltd,Housing,V082931,1563,7201,Capital,Disabled Facilities Grant,12/09/2017,3525
ISO Property Developements Ltd,Housing,V082981,1563,7010,Capital,Disabled Facilities Grant,13/09/2017,3375
ISO Property Developements Ltd,Housing,V083075,1563,7201,Capital,Disabled Facilities Grant,21/09/2017,4965
ISO Property Developements Ltd,Housing,V083096,1563,7209,Capital,Disabled Facilities Grant,21/09/2017,3805
ISO Property Developements Ltd,Housing,V083097,1563,7201,Capital,Disabled Facilities Grant,21/09/2017,3325
ISO Property Developements Ltd,Housing,V083125,1563,7010,Capital,Disabled Facilities Grant,22/09/2017,6455
ISO Property Developements Ltd,Housing,V083240,1563,7201,Capital,Disabled Facilities Grant,28/09/2017,4165
J McGonagle - Turner,Community Services,V083043,4225,2800,Third party payments,Contractors,18/09/2017,1000
Jade Security Services Limited,Community Services,V083064,4302,5535,Premises Costs,Security Services,28/09/2017,393.3
Jark (Worcester) Ltd,Operations,V082777,920,200,Employee Costs,Agency Staff,04/09/2017,340.5
Jark (Worcester) Ltd,Operations,V082777,925,200,Employee Costs,Agency Staff,04/09/2017,1082.15
Jark (Worcester) Ltd,Operations,V082777,935,200,Employee Costs,Agency Staff,04/09/2017,360.3
Jark (Worcester) Ltd,Operations,V082966,920,200,Employee Costs,Agency Staff,13/09/2017,763.26
Jark (Worcester) Ltd,Operations,V082966,925,200,Employee Costs,Agency Staff,13/09/2017,1560.83
Jark (Worcester) Ltd,Operations,V082966,932,200,Employee Costs,Agency Staff,13/09/2017,493.73
Jark (Worcester) Ltd,Operations,V082966,935,200,Employee Costs,Agency Staff,13/09/2017,914.71
Jark (Worcester) Ltd,Operations,V083044,920,200,Employee Costs,Agency Staff,18/09/2017,414.28
Jark (Worcester) Ltd,Operations,V083044,922,200,Employee Costs,Agency Staff,18/09/2017,90.8
Jark (Worcester) Ltd,Operations,V083044,925,200,Employee Costs,Agency Staff,18/09/2017,1432.88
Jark (Worcester) Ltd,Operations,V083044,935,200,Employee Costs,Agency Staff,18/09/2017,420.35
Jark (Worcester) Ltd,Operations,V083152,925,200,Employee Costs,Agency Staff,25/09/2017,1925.88
Jark (Worcester) Ltd,Operations,V083152,935,200,Employee Costs,Agency Staff,25/09/2017,637.49
JCS Online Resources Ltd,Community Services,V082935,6230,2800,Third party payments,Contractors,29/09/2017,287.5
Joseph Woods Builders,Property Services,V083036,4152,1000,Premises Costs,Repairs & Maintenance,19/09/2017,3698
Karl Rigby,Property Services,V082769,1155,7010,Capital,Works,06/09/2017,15913
Karl Rigby,Property Services,V082924,2972,1000,Premises Costs,Repairs & Maintenance,12/09/2017,340
Keith H Ballard,Operations,V083015,4633,1000,Premises Costs,Repairs & Maintenance,15/09/2017,275
Keith H Ballard,Operations,V083016,4635,1000,Premises Costs,Repairs & Maintenance,15/09/2017,1709.78
Keith H Ballard,Operations,V083017,4630,1000,Premises Costs,Repairs & Maintenance,15/09/2017,524.96
Keith H Ballard,Operations,V083019,4661,1000,Premises Costs,Repairs & Maintenance,15/09/2017,252.44
Keith H Ballard,Operations,V083021,4650,1000,Premises Costs,Repairs & Maintenance,15/09/2017,628.55
Kempsey Parish Council,Finance,P083172,7,4899,Third party payments,Precept Payments,26/09/2017,48177
Kenswick & Wichenford Parish Council,Finance,P083188,7,4899,Third party payments,Precept Payments,26/09/2017,4500
Knighton on Teme Parish Council,Finance,P083162,7,4899,Third party payments,Precept Payments,26/09/2017,2260
Knightwick & Doddenham Parish Council,Finance,P083189,7,4899,Third party payments,Precept Payments,26/09/2017,2600
Leigh and Bransford Parish Council,Finance,P083190,7,4899,Third party payments,Precept Payments,26/09/2017,9704
Lindridge Parish Council,Finance,P083173,7,4899,Third party payments,Precept Payments,26/09/2017,3350
Little Malvern & Welland Parish Council,Finance,P083191,7,4899,Third party payments,Precept Payments,26/09/2017,13190
Little Witley Parish Council,Finance,P083192,7,4899,Third party payments,Precept Payments,26/09/2017,2500
Longdon Holdfast and Queenhill Parish Council,Finance,P083193,7,4899,Third party payments,Precept Payments,26/09/2017,5472
Lower Broadheath Parish Council,Finance,P083179,7,4899,Third party payments,Precept Payments,26/09/2017,15500
Lower Sapey Parish Council,Finance,P083194,7,4899,Third party payments,Precept Payments,26/09/2017,300
M E Bennion,Operations,V083005,960,1000,Premises Costs,Repairs & Maintenance,14/09/2017,261.5
Madresfield Parish Council,Finance,P083195,7,4899,Third party payments,Precept Payments,26/09/2017,700
Malvern Dial-A-Ride,Community Services,V082998,4070,5529,Third party payments,Concessionary Fares,14/09/2017,520
Malvern Hills Trust,Finance,P083081,9463,8902,Third party payments,Payments,22/09/2017,350
Malvern Hills Trust,Finance,P083161,7,4899,Third party payments,Precept Payments,28/09/2017,109163.75
Malvern Hills Trust,Tourism,V082897,6550,9252,Third party payments,Commission,08/09/2017,-88
Malvern Hills Trust,Tourism,V082897,9551,8902,Third party payments,Payments,08/09/2017,880
Malvern Motor Services Ltd,Operations,V082599,925,4402,Third party payments,Uninsured Loss,12/09/2017,340
Malvern Wells Parish Council,Finance,P083196,7,4899,Third party payments,Precept Payments,26/09/2017,39250
Malvern Wells Parish Council,Democratic Services,V082891,2300,5400,Third party payments,Grants,08/09/2017,250
Mamble Parish Council,Finance,P083197,7,4899,Third party payments,Precept Payments,26/09/2017,2850
Martley Parish Council,Finance,P083198,7,4899,Third party payments,Precept Payments,26/09/2017,10850
Melton Support Services,Property Services,V082736,8852,1311,Premises Costs,Contract Cleaning & Cleaning Supplies,26/09/2017,402.6
Metric Group Ltd,Operations,V082563,4157,1000,Supplies & Services,Repairs & Maintenance,12/09/2017,393.48
Michelle Caney,SMT,V082766,4320,2800,Third party payments,Contractors,27/09/2017,2400
Midland Commercials Ltd,Operations,V082852,829,3510,Transport Costs,Vehicle Maintenance,13/09/2017,1149.64
Midland Commercials Ltd,Operations,V082853,796,3510,Transport Costs,Vehicle Maintenance,13/09/2017,476.95
Midland Commercials Ltd,Operations,V082854,826,3510,Transport Costs,Vehicle Maintenance,18/09/2017,961.4
Midland Commercials Ltd,Operations,V082855,794,3510,Transport Costs,Vehicle Maintenance,13/09/2017,537.4
Midland Commercials Ltd,Operations,V082857,818,3510,Transport Costs,Vehicle Maintenance,13/09/2017,417.5
Midland Commercials Ltd,Operations,V082859,823,3510,Transport Costs,Vehicle Maintenance,13/09/2017,270.97
Midland Commercials Ltd,Operations,V082862,816,3510,Transport Costs,Vehicle Maintenance,13/09/2017,856.51
Midland Commercials Ltd,Operations,V082864,778,3510,Transport Costs,Vehicle Maintenance,13/09/2017,447.46
Midland Commercials Ltd,Operations,V082865,795,3510,Transport Costs,Vehicle Maintenance,13/09/2017,833.67
Midland Commercials Ltd,Operations,V083115,777,3510,Transport Costs,Vehicle Maintenance,28/09/2017,374.58
Midland Commercials Ltd,Operations,V083116,828,3510,Transport Costs,Vehicle Maintenance,28/09/2017,2592.19
Midland Communications Ltd,Finance,V082969,900,4230,Premises Costs,Telephones,28/09/2017,34.5
Midland Communications Ltd,Finance,V082969,2971,4230,Premises Costs,Telephones,28/09/2017,6.67
Midland Communications Ltd,Finance,V082969,2972,4230,Premises Costs,Telephones,28/09/2017,6.67
Midland Communications Ltd,Finance,V082969,2973,4230,Premises Costs,Telephones,28/09/2017,30.49
Midland Communications Ltd,Finance,V082969,4302,4230,Premises Costs,Telephones,28/09/2017,23.4
Midland Communications Ltd,Finance,V082969,4320,4230,Premises Costs,Telephones,28/09/2017,82.13
Midland Communications Ltd,Finance,V082969,6105,4230,Premises Costs,Telephones,28/09/2017,-4.83
Midland Communications Ltd,Finance,V082969,6550,4230,Premises Costs,Telephones,28/09/2017,79.9
Midland Communications Ltd,Finance,V082969,6590,4230,Premises Costs,Telephones,28/09/2017,70.91
Midland Communications Ltd,Finance,V082969,8631,4230,Premises Costs,Telephones,28/09/2017,282.1
Midland Communications Ltd,Finance,V082969,8645,4230,Premises Costs,Telephones,28/09/2017,102.52
Midland Communications Ltd,Finance,V083264,900,4230,Premises Costs,Telephones,27/09/2017,34.5
Midland Communications Ltd,Finance,V083264,2971,4230,Premises Costs,Telephones,27/09/2017,6.67
Midland Communications Ltd,Finance,V083264,2972,4230,Premises Costs,Telephones,27/09/2017,6.67
Midland Communications Ltd,Finance,V083264,2973,4230,Premises Costs,Telephones,27/09/2017,30.49
Midland Communications Ltd,Finance,V083264,4302,4230,Premises Costs,Telephones,27/09/2017,23.4
Midland Communications Ltd,Finance,V083264,4320,4230,Premises Costs,Telephones,27/09/2017,82.13
Midland Communications Ltd,Finance,V083264,6105,4230,Premises Costs,Telephones,27/09/2017,-4.83
Midland Communications Ltd,Finance,V083264,6550,4230,Premises Costs,Telephones,27/09/2017,79.9
Midland Communications Ltd,Finance,V083264,6590,4230,Premises Costs,Telephones,27/09/2017,70.91
Midland Communications Ltd,Finance,V083264,8631,4230,Premises Costs,Telephones,27/09/2017,282.1
Midland Communications Ltd,Finance,V083264,8645,4230,Premises Costs,Telephones,27/09/2017,102.52
Minuteman Press,Property Services,V082925,8864,4000,Supplies & Services,Printing & Photocopying,12/09/2017,1095
Redacted,Community Services,V082829,4225,2800,Third party payments,Contractors,05/09/2017,2350
Newland Parish Council,Finance,P083199,7,4899,Third party payments,Precept Payments,26/09/2017,2250
Newsquest (Media Group) Limited,Development Control,V082567,7300,4210,Third party payments,Advertising,12/09/2017,252
Notice Board Company (UK) Ltd,Property Services,V082668,2972,2000,Supplies & Services,Furniture & Equipment,19/09/2017,270.1
npower Limited,Property Services,V083062,900,1301,Premises Costs,Electricity,19/09/2017,352.08
npower Limited,Property Services,V083062,2972,1301,Premises Costs,Electricity,19/09/2017,870.21
npower Limited,Property Services,V083062,2973,1301,Premises Costs,Electricity,19/09/2017,86.65
Office Depot UK Limited,Finance,V082928,900,4100,Supplies & Services,Stationery,28/09/2017,24.54
Office Depot UK Limited,Finance,V082928,2342,4100,Supplies & Services,Stationery,28/09/2017,21.1
Office Depot UK Limited,Finance,V082928,7300,4100,Supplies & Services,Stationery,28/09/2017,211.33
Office Depot UK Limited,Finance,V082928,8841,4100,Supplies & Services,Stationery,28/09/2017,77.65
P F Cusack (Tool Supplies) Ltd,Operations,V082608,925,2700,Employee Costs,"Clothes, Uniforms & Laundry",13/09/2017,280
Pendock Parish Council,Finance,P083210,7,4899,Third party payments,Precept Payments,26/09/2017,775
Pensax Parish Council,Finance,P083200,7,4899,Third party payments,Precept Payments,26/09/2017,2125
Pertemps Ltd,Operations,V082778,925,200,Employee Costs,Agency Staff,04/09/2017,512.64
Pertemps Ltd,Operations,V082784,925,200,Employee Costs,Agency Staff,04/09/2017,596.32
Pertemps Ltd,Operations,V082785,925,200,Employee Costs,Agency Staff,04/09/2017,354.2
Pertemps Ltd,Operations,V082786,925,200,Employee Costs,Agency Staff,04/09/2017,475.38
Pertemps Ltd,Operations,V082787,923,200,Employee Costs,Agency Staff,04/09/2017,447.96
Pertemps Ltd,Operations,V082788,923,200,Employee Costs,Agency Staff,04/09/2017,290.19
Pertemps Ltd,Operations,V082789,925,200,Employee Costs,Agency Staff,04/09/2017,367.01
Pertemps Ltd,Operations,V082790,925,200,Employee Costs,Agency Staff,04/09/2017,373.16
Pertemps Ltd,Operations,V082791,925,200,Employee Costs,Agency Staff,04/09/2017,327.18
Pertemps Ltd,Operations,V082943,925,200,Employee Costs,Agency Staff,12/09/2017,505.69
Pertemps Ltd,Operations,V082944,925,200,Employee Costs,Agency Staff,12/09/2017,697.5
Pertemps Ltd,Operations,V082945,925,200,Employee Costs,Agency Staff,12/09/2017,828.9
Pertemps Ltd,Operations,V082946,923,200,Employee Costs,Agency Staff,12/09/2017,466.27
Pertemps Ltd,Operations,V082948,925,200,Employee Costs,Agency Staff,12/09/2017,506.76
Pertemps Ltd,Operations,V082949,925,200,Employee Costs,Agency Staff,12/09/2017,487.61
Pertemps Ltd,Operations,V082950,925,200,Employee Costs,Agency Staff,12/09/2017,454.08
Pertemps Ltd,Operations,V082951,925,200,Employee Costs,Agency Staff,12/09/2017,349.94
Pertemps Ltd,Operations,V082952,925,200,Employee Costs,Agency Staff,12/09/2017,348.52
Pertemps Ltd,Operations,V082953,925,200,Employee Costs,Agency Staff,12/09/2017,522.06
Pertemps Ltd,Operations,V082954,925,200,Employee Costs,Agency Staff,12/09/2017,1095
Pertemps Ltd,Operations,V082956,925,200,Employee Costs,Agency Staff,12/09/2017,926.68
Pertemps Ltd,Operations,V083013,925,200,Employee Costs,Agency Staff,15/09/2017,512.66
Pertemps Ltd,Operations,V083026,925,200,Employee Costs,Agency Staff,15/09/2017,599.83
Pertemps Ltd,Operations,V083027,925,200,Employee Costs,Agency Staff,15/09/2017,643.62
Pertemps Ltd,Operations,V083028,925,200,Employee Costs,Agency Staff,15/09/2017,615.55
Pertemps Ltd,Operations,V083029,925,200,Employee Costs,Agency Staff,15/09/2017,364.62
Pertemps Ltd,Operations,V083029,4317,200,Employee Costs,Agency Staff,15/09/2017,86.52
Pertemps Ltd,Operations,V083030,923,200,Employee Costs,Agency Staff,15/09/2017,280.37
Pertemps Ltd,Operations,V083030,925,200,Employee Costs,Agency Staff,15/09/2017,67.05
Pertemps Ltd,Operations,V083031,925,200,Employee Costs,Agency Staff,15/09/2017,411.41
Pertemps Ltd,Operations,V083033,925,200,Employee Costs,Agency Staff,15/09/2017,335.71
Pertemps Ltd,Operations,V083034,925,200,Employee Costs,Agency Staff,15/09/2017,709.66
Pertemps Ltd,Operations,V083035,925,200,Employee Costs,Agency Staff,15/09/2017,414.46
Pertemps Ltd,Operations,V083123,925,200,Employee Costs,Agency Staff,22/09/2017,470.81
Pertemps Ltd,Operations,V083127,925,200,Employee Costs,Agency Staff,22/09/2017,714.89
Pertemps Ltd,Operations,V083128,925,200,Employee Costs,Agency Staff,22/09/2017,591.42
Pertemps Ltd,Operations,V083129,925,200,Employee Costs,Agency Staff,22/09/2017,551.57
Pertemps Ltd,Operations,V083130,925,200,Employee Costs,Agency Staff,22/09/2017,74.16
Pertemps Ltd,Operations,V083130,4317,200,Employee Costs,Agency Staff,22/09/2017,336.81
Pertemps Ltd,Operations,V083131,923,200,Employee Costs,Agency Staff,22/09/2017,79.24
Pertemps Ltd,Operations,V083131,925,200,Employee Costs,Agency Staff,22/09/2017,316.94
Pertemps Ltd,Operations,V083134,922,200,Employee Costs,Agency Staff,22/09/2017,73.97
Pertemps Ltd,Operations,V083134,923,200,Employee Costs,Agency Staff,22/09/2017,385.5
Pertemps Ltd,Operations,V083135,923,200,Employee Costs,Agency Staff,22/09/2017,91.04
Pertemps Ltd,Operations,V083135,925,200,Employee Costs,Agency Staff,22/09/2017,199.15
Pertemps Ltd,Operations,V083136,925,200,Employee Costs,Agency Staff,22/09/2017,714.89
Pertemps Ltd,Operations,V083137,922,200,Employee Costs,Agency Staff,22/09/2017,93.89
Pertemps Ltd,Operations,V083137,925,200,Employee Costs,Agency Staff,22/09/2017,352.78
Pertemps Ltd,Operations,V083241,923,200,Employee Costs,Agency Staff,29/09/2017,139.5
Pertemps Ltd,Operations,V083241,925,200,Employee Costs,Agency Staff,29/09/2017,462.05
Pertemps Ltd,Operations,V083248,925,200,Employee Costs,Agency Staff,29/09/2017,667.82
Pertemps Ltd,Operations,V083249,925,200,Employee Costs,Agency Staff,29/09/2017,479.51
Pertemps Ltd,Operations,V083250,925,200,Employee Costs,Agency Staff,29/09/2017,496.52
Pertemps Ltd,Operations,V083251,925,200,Employee Costs,Agency Staff,29/09/2017,578.99
Pertemps Ltd,Operations,V083252,923,200,Employee Costs,Agency Staff,29/09/2017,344.37
Pertemps Ltd,Operations,V083252,4317,200,Employee Costs,Agency Staff,29/09/2017,70.09
Pertemps Ltd,Operations,V083253,925,200,Employee Costs,Agency Staff,29/09/2017,169.95
Pertemps Ltd,Operations,V083253,4317,200,Employee Costs,Agency Staff,29/09/2017,259.56
Pertemps Ltd,Operations,V083254,925,200,Employee Costs,Agency Staff,29/09/2017,377.89
Pertemps Ltd,Operations,V083256,922,200,Employee Costs,Agency Staff,29/09/2017,459.47
Photoglide Ltd,Economic Development,V082839,6734,5400,Third party payments,Grants,06/09/2017,500
Pirtek (Kidderminster),Operations,V082620,925,2000,Supplies & Services,Furniture & Equipment,08/09/2017,327
Pirtek Worcester,Operations,V082818,824,3510,Transport,Vehicle Maintenance,05/09/2017,627.69
Planning and Management Ltd,Finance,V082880,7015,2800,Third party payments,Contractors,07/09/2017,7219.05
Planning and Management Ltd,Finance,V082883,7015,2800,Third party payments,Contractors,07/09/2017,2250
Postage By Phone - Pitney Bowes,Finance,V083058,8633,4220,Third party payments,Postage,20/09/2017,1008
Powick Parish Council,Finance,P083201,7,4899,Third party payments,Precept Payments,26/09/2017,21599.34
Printed Banners and Signs Ltd,Economic Development,V082907,6723,4330,Supplies & Services,Publicity & Promotions,08/09/2017,279
Prism Ltd,Property Services,V082604,2972,2000,Supplies & Services,Furniture & Equipment,08/09/2017,960
PVC Vendo,Operations,V082893,925,3100,Transport,Vehicle Running Costs,08/09/2017,377.5
PVC Vendo,Operations,V082936,925,3100,Transport,Vehicle Running Costs,22/09/2017,376.51
PVC Vendo,Operations,V083103,925,3100,Transport,Vehicle Running Costs,29/09/2017,349.13
R Glover Ascroft Ltd,Operations,V082700,925,2700,Employee Costs,"Clothes, Uniforms & Laundry",15/09/2017,507.84
Red Kite Network Limited,Property Services,V082837,2950,2800,Third party payments,Contractors,15/09/2017,4815
Refuse Vehicle Solutions Limited,Operations,V082640,816,3150,Transport,Vehicle HIre,15/09/2017,2800
Refuse Vehicle Solutions Limited,Operations,V082809,832,3510,Transport,Vehicle Maintenance,28/09/2017,684.5
Ripple Parish Council,Finance,P083202,7,4899,Third party payments,Precept Payments,26/09/2017,8251.16
Robinson Low Francis,Property Services,V082832,1147,7000,Capital,Fees,27/09/2017,5614
Rochford Parish Council,Finance,P083203,7,4899,Third party payments,Precept Payments,26/09/2017,1750
Rushwick Parish Council,Finance,P083174,7,4899,Third party payments,Precept Payments,26/09/2017,12100
S C Entertainments,Tourism,V082840,6590,9252,Third party payments,Commission,07/09/2017,-548.5
S C Entertainments,Tourism,V082840,9599,8902,Third party payments,Payments,07/09/2017,5485
S C Entertainments,Tourism,V082841,6550,9252,Third party payments,Commission,07/09/2017,-76
S C Entertainments,Tourism,V082841,9569,8902,Third party payments,Payments,07/09/2017,760
Salvage Cinema Ltd,Economic Development,V083230,6710,4330,Supplies & Services,Publicity & Promotions,27/09/2017,596.8
Severn Stoke with Croome D`Abitot Parish Council,Finance,P083204,7,4899,Third party payments,Precept Payments,26/09/2017,4100
Shrawley Parish Council,Finance,P083206,7,4899,Third party payments,Precept Payments,26/09/2017,2750
Smart Survey,Finance,V082525,8864,4330,Supplies & Services,Publicity & Promotions,08/09/2017,270
Snape Construction Ltd,Housing,V082724,1563,7010,Capital,Disabled Facilities Grant,15/09/2017,9286
Snape Construction Ltd,Housing,V083223,1563,7209,Capital,Disabled Facilities Grant,28/09/2017,4522.5
Snape Construction Ltd,Housing,V083224,1563,7201,Capital,Disabled Facilities Grant,28/09/2017,4729
Snape Construction Ltd,Housing,V083225,1563,7209,Capital,Disabled Facilities Grant,28/09/2017,4177
Stannah Lift Services Ltd,Housing,V082900,1563,7201,Capital,Disabled Facilities Grant,22/09/2017,4182
Stannah Lift Services Ltd,Housing,V083070,1563,7010,Capital,Disabled Facilities Grant,22/09/2017,1970
Stoke Bliss Kyre & Bockleton Parish Council,Finance,P083207,7,4899,Third party payments,Precept Payments,26/09/2017,1450
Storm Video Productions Ltd,Community Services,V082982,6201,2800,Third party payments,Contractors,13/09/2017,785
Suckley Parish Council,Finance,P083208,7,4899,Third party payments,Precept Payments,26/09/2017,6825.5
Tenbury Town Council,Finance,P083209,7,4899,Third party payments,Precept Payments,26/09/2017,85396
Tenbury Transport Trust,Community Services,V082999,4070,5529,Third party payments,Concessionary Fares,14/09/2017,389
Terberg Matec UK Ltd,Operations,V082562,826,3510,Transport,Vehicle Maintenance,12/09/2017,725.37
Terberg Matec UK Ltd,Operations,V082875,829,3510,Transport,Vehicle Maintenance,29/09/2017,1320.73
Thamesdown Recycling,Operations,V082555,4314,2800,Third party payments,Contractors,08/09/2017,719.8
The Community Housing Group Limited,Finance,V082493,4311,2800,Third party payments,Contractors,06/09/2017,44.84
The Community Housing Group Limited,Finance,V082493,4320,5500,Third party payments,Miscellaneous Expenses,06/09/2017,282.47
The Shelsleys Parish Council,Finance,P083205,7,4899,Third party payments,Precept Payments,26/09/2017,2000
Total Merchandise Limited,Democratic Services,V082745,2300,600,Employee Costs,Training,06/09/2017,338
Trash UK Limited,Operations,V082654,823,3150,Transport,Vehicle HIre,19/09/2017,1600
Truck Tyre Solutions,Operations,V082570,823,3320,Transport,Tyres,14/09/2017,281.5
Truck Tyre Solutions,Operations,V082661,796,3320,Transport,Tyres,20/09/2017,551
Truck Tyre Solutions,Operations,V082663,701,3320,Transport,Tyres,20/09/2017,746
Truck Tyre Solutions,Operations,V082973,815,3320,Transport,Tyres,13/09/2017,508
Truck Tyre Solutions,Operations,V082975,832,3320,Transport,Tyres,22/09/2017,453
UK Mail Ltd,Finance,V082739,7300,4220,Third party payments,Postage,07/09/2017,143.17
UK Mail Ltd,Finance,V082739,7500,4220,Third party payments,Postage,07/09/2017,0.36
UK Mail Ltd,Finance,V082739,8120,4220,Third party payments,Postage,07/09/2017,253.05
UK Mail Ltd,Finance,V082739,8861,4220,Third party payments,Postage,07/09/2017,36.76
UK Mail Ltd,Finance,V082758,7300,4220,Third party payments,Postage,13/09/2017,238.66
UK Mail Ltd,Finance,V082758,7500,4220,Third party payments,Postage,13/09/2017,0.71
UK Mail Ltd,Finance,V082758,8120,4220,Third party payments,Postage,13/09/2017,224.85
UK Mail Ltd,Finance,V082758,8861,4220,Third party payments,Postage,13/09/2017,44.26
UK Mail Ltd,Finance,V082762,7300,4220,Third party payments,Postage,04/09/2017,327.48
UK Mail Ltd,Finance,V082762,7500,4220,Third party payments,Postage,04/09/2017,0.36
UK Mail Ltd,Finance,V082762,8120,4220,Third party payments,Postage,04/09/2017,7.85
UK Mail Ltd,Finance,V082762,8861,4220,Third party payments,Postage,04/09/2017,142.76
UK Mail Ltd,Finance,V082926,7300,4220,Third party payments,Postage,27/09/2017,268.93
UK Mail Ltd,Finance,V082926,8120,4220,Third party payments,Postage,27/09/2017,483.25
UK Mail Ltd,Finance,V082926,8861,4220,Third party payments,Postage,27/09/2017,60.31
Upton Community Care,Community Services,V082961,4070,5529,Third party payments,Concessionary Fares,12/09/2017,292
Upton upon Severn Town Council,Finance,P083175,7,4899,Third party payments,Precept Payments,26/09/2017,62411.5
Veale Wasbrough Vizards,Electoral Services,V083014,8841,600,Employee Costs,Training,21/09/2017,470
Vision Techniques (UK) Ltf,Operations,V082768,722,3100,Transport,Vehicle Running Costs,27/09/2017,300
Volkswagen Financial Services (UK) Ltd,Finance,V083239,8861,3600,Transport,Car Leases,28/09/2017,2058.65
Warren Benbow Architects,Property Services,V083024,2996,2800,Third party payments,Contractors,15/09/2017,3860
Water Plus,Operations,V082799,900,1511,Premises Costs,Water Services,14/09/2017,3107.15
Water Plus,Finance,V082989,2982,1511,Premises Costs,Water Services,21/09/2017,273.41
Water Plus,Finance,V083315,2972,1511,Premises Costs,Water Services,27/09/2017,2096.79
Webmart Ltd,Property Services,V082995,8864,4000,Supplies & Services,Printing & Photocopying,14/09/2017,2518
West Malvern Parish Council,Finance,P083176,7,4899,Third party payments,Precept Payments,26/09/2017,8700
West Mercia Energy,Operations,V082520,9918,8902,Transport,Fuel Stocks,05/09/2017,5601.6
West Mercia Energy,Operations,V082521,9918,8902,Transport,Fuel Stocks,05/09/2017,5684.78
West Mercia Energy,Operations,V082690,9918,8902,Transport,Fuel Stocks,15/09/2017,5812.5
West Mercia Energy,Operations,V082691,9918,8902,Transport,Fuel Stocks,15/09/2017,5805.06
Wicksteed Leisure Limited,Operations,V082741,960,1000,Supplies & Services,Repairs & Maintenance,19/09/2017,284
Windermere Roofing,Housing,V082722,1563,7202,Capital,Disabled Facilities Grant,04/09/2017,2390
Worcester City Council,Building Control,V082887,7500,5507,,OLAs,07/09/2017,421.67
Worcestershire County Council,Finance,V083226,8864,5507,,OLAs,27/09/2017,2000
Wright Hassall LLP,Finance,V082572,9003,8902,Balance Sheet,VAT only invoice,12/09/2017,395.2
Wright Staff Recruitment Ltd,Operations,V082817,922,200,Employee Costs,Agency Staff,06/09/2017,586.03
Wright Staff Recruitment Ltd,Operations,V082817,923,200,Employee Costs,Agency Staff,06/09/2017,591.12
Wright Staff Recruitment Ltd,Operations,V082817,925,200,Employee Costs,Agency Staff,06/09/2017,795.02
Wright Staff Recruitment Ltd,Operations,V082965,923,200,Employee Costs,Agency Staff,13/09/2017,801.76
Wright Staff Recruitment Ltd,Operations,V082965,925,200,Employee Costs,Agency Staff,13/09/2017,1713.86
Wright Staff Recruitment Ltd,Operations,V083057,923,200,Employee Costs,Agency Staff,20/09/2017,428.08
Wright Staff Recruitment Ltd,Operations,V083057,925,200,Employee Costs,Agency Staff,20/09/2017,1652.79
Wright Staff Recruitment Ltd,Operations,V083153,923,200,Employee Costs,Agency Staff,27/09/2017,620.02
Wright Staff Recruitment Ltd,Operations,V083153,925,200,Employee Costs,Agency Staff,27/09/2017,1323.28
Wychavon District Council,Finance,V082040,8013,5500,Third party payments,Miscellaneous Expenses,29/09/2017,531.11
Wychavon District Council,Development Control,V082718,7300,2800,Third party payments,Contractors,01/09/2017,437.32
Wychavon District Council,Finance,V082720,3800,5507,Third party payments,OLAs,01/09/2017,26558.33
Wychavon District Council,Finance,V082720,8013,5507,Third party payments,OLAs,01/09/2017,26558.34
Wychavon District Council,Electoral Services,V082773,8104,2800,Third party payments,Contractors,07/09/2017,1004.64
Wychavon District Council,Electoral Services,V082773,8104,2818,Third party payments,Accomodation Hire,07/09/2017,2862
Wychavon District Council,Finance,V082834,8013,5500,Third party payments,Miscellaneous Expenses,08/09/2017,333.32
Wychavon District Council,Property Services,V082915,8841,4230,Premises Costs,Telephones,08/09/2017,288.6
Wychavon District Council,Property Services,V082964,900,4230,Premises Costs,Telephones,15/09/2017,24.66
Wychavon District Council,Property Services,V082964,920,4230,Premises Costs,Telephones,15/09/2017,34
Wychavon District Council,Property Services,V082964,922,4230,Premises Costs,Telephones,15/09/2017,2.75
Wychavon District Council,Property Services,V082964,923,4230,Premises Costs,Telephones,15/09/2017,2.75
Wychavon District Council,Property Services,V082964,925,4230,Premises Costs,Telephones,15/09/2017,36.75
Wychavon District Council,Property Services,V082964,932,4230,Premises Costs,Telephones,15/09/2017,2.75
Wychavon District Council,Property Services,V082964,935,4230,Premises Costs,Telephones,15/09/2017,2.75
Wychavon District Council,Property Services,V082964,960,4230,Premises Costs,Telephones,15/09/2017,5.5
Wychavon District Council,Property Services,V082964,2300,4230,Premises Costs,Telephones,15/09/2017,12
Wychavon District Council,Property Services,V082964,4225,4230,Premises Costs,Telephones,15/09/2017,12
Wychavon District Council,Property Services,V082964,4302,4230,Premises Costs,Telephones,15/09/2017,36
Wychavon District Council,Property Services,V082964,4311,4230,Premises Costs,Telephones,15/09/2017,33.16
Wychavon District Council,Property Services,V082964,4837,4230,Premises Costs,Telephones,15/09/2017,24
Wychavon District Council,Property Services,V082964,6098,4230,Premises Costs,Telephones,15/09/2017,84
Wychavon District Council,Property Services,V082964,6230,4230,Premises Costs,Telephones,15/09/2017,12
Wychavon District Council,Property Services,V082964,6710,4230,Premises Costs,Telephones,15/09/2017,20.25
Wychavon District Council,Property Services,V082964,7300,4230,Premises Costs,Telephones,15/09/2017,87.25
Wychavon District Council,Property Services,V082964,7500,4230,Premises Costs,Telephones,15/09/2017,60
Wychavon District Council,Property Services,V082964,7850,4230,Premises Costs,Telephones,15/09/2017,12
Wychavon District Council,Property Services,V082964,8120,4230,Premises Costs,Telephones,15/09/2017,13.75
Wychavon District Council,Property Services,V082964,8841,4230,Premises Costs,Telephones,15/09/2017,81.04
Wychavon District Council,Property Services,V082964,8860,4230,Premises Costs,Telephones,15/09/2017,2.75
Wychavon District Council,Property Services,V082964,8861,4230,Premises Costs,Telephones,15/09/2017,12
Wychavon District Council,Property Services,V082964,8864,4230,Premises Costs,Telephones,15/09/2017,12
Wychavon District Council,Community Services,V083245,4100,2800,Third party payments,Contractors,29/09/2017,1000
Zurich Municipal,Finance,V082551,2950,4401,Third party payments,Contractors,08/09/2017,5000
